[Event "*** Titled Tuesday Blitz"]
[Site "Chess.com"]
[Date "2020.05.26"]
[Round "5"]
[White "LiverpooL174"]
[Black "AnishGiri"]
[Result "1/2-1/2"]
[WhiteElo "2671"]
[BlackElo "2962"]
[TimeControl "180+1"]
[EndTime "11:00:09 PDT"]
[Termination "Game drawn by repetition"]

1. Nf3 {[%clk 0:03:00.9]} 1... c5 {[%clk 0:02:59.7]} 2. b3 {[%clk 0:03:01.8]}
2... b6 {[%clk 0:02:56.2]} 3. Bb2 {[%clk 0:03:02.3]} 3... Bb7 {[%clk 0:02:56.6]}
4. g3 {[%clk 0:03:03]} 4... Nf6 {[%clk 0:02:45.3]} 5. Bg2 {[%clk 0:03:03.3]}
5... e6 {[%clk 0:02:45.9]} 6. O-O {[%clk 0:03:03.3]} 6... Be7 {[%clk 0:02:46.5]}
7. c4 {[%clk 0:03:04.1]} 7... O-O {[%clk 0:02:47.1]} 8. d4 {[%clk 0:03:04.7]}
8... cxd4 {[%clk 0:02:47.6]} 9. Nxd4 {[%clk 0:03:05]} 9... Bxg2 {[%clk
0:02:44.8]} 10. Kxg2 {[%clk 0:03:05.9]} 10... a6 {[%clk 0:02:43.3]} 11. Nf3
{[%clk 0:03:05.5]} 11... Qc8 {[%clk 0:02:40.1]} 12. Nc3 {[%clk 0:03:03.2]} 12...
Qb7 {[%clk 0:02:40.2]} 13. Qd3 {[%clk 0:03:02.2]} 13... d6 {[%clk 0:02:39.2]}
14. e4 {[%clk 0:03:02.4]} 14... Nbd7 {[%clk 0:02:38.2]} 15. Rfe1 {[%clk
0:03:02.6]} 15... Rab8 {[%clk 0:02:35.6]} 16. Rad1 {[%clk 0:03:02.3]} 16... b5
{[%clk 0:02:34.2]} 17. Nd2 {[%clk 0:02:51.9]} 17... Ne5 {[%clk 0:02:32.2]} 18.
Qe2 {[%clk 0:02:49]} 18... Rfc8 {[%clk 0:02:20.4]} 19. f4 {[%clk 0:02:48.4]}
19... Ned7 {[%clk 0:02:18]} 20. Kh3 {[%clk 0:02:46.5]} 20... h5 {[%clk
0:02:14.6]} 21. cxb5 {[%clk 0:02:44.6]} 21... axb5 {[%clk 0:02:14.1]} 22. Nf3
{[%clk 0:02:45]} 22... Ng4 {[%clk 0:01:57.2]} 23. a3 {[%clk 0:02:41.9]} 23... b4
{[%clk 0:01:54]} 24. axb4 {[%clk 0:02:40.6]} 24... Qxb4 {[%clk 0:01:54.5]} 25.
Rd4 {[%clk 0:02:36.3]} 25... Qxb3 {[%clk 0:01:52]} 26. Nd1 {[%clk 0:02:36.8]}
26... Rc2 {[%clk 0:01:34.3]} 27. Rd2 {[%clk 0:02:36.9]} 27... Rbc8 {[%clk
0:01:18.6]} 28. Nd4 {[%clk 0:02:29]} 28... Rxd2 {[%clk 0:01:13.1]} 29. Nxb3
{[%clk 0:02:29.6]} 29... Rxe2 {[%clk 0:01:12.4]} 30. Rxe2 {[%clk 0:02:30.5]}
30... Bf6 {[%clk 0:01:02.4]} 31. Bxf6 {[%clk 0:02:30]} 31... Ngxf6 {[%clk
0:01:01.5]} 32. Kg2 {[%clk 0:02:29.6]} 32... Rc4 {[%clk 0:00:59.9]} 33. Nf2
{[%clk 0:02:28.8]} 33... Rb4 {[%clk 0:00:59.2]} 34. Nd2 {[%clk 0:02:28.6]} 34...
g6 {[%clk 0:00:49]} 35. Nf3 {[%clk 0:02:26.7]} 35... e5 {[%clk 0:00:42.4]} 36.
fxe5 {[%clk 0:02:19.3]} 36... dxe5 {[%clk 0:00:33.4]} 37. Rd2 {[%clk 0:02:18.5]}
37... Kf8 {[%clk 0:00:31.2]} 38. h3 {[%clk 0:02:12.6]} 38... Ke7 {[%clk
0:00:29.6]} 39. Re2 {[%clk 0:02:12.3]} 39... Rb5 {[%clk 0:00:19.5]} 40. Rd2
{[%clk 0:02:12.2]} 40... Nf8 {[%clk 0:00:17.1]} 41. Nd3 {[%clk 0:02:07.6]} 41...
N6d7 {[%clk 0:00:14.9]} 42. Ra2 {[%clk 0:01:59.5]} 42... Ne6 {[%clk 0:00:15.1]}
43. Ra7 {[%clk 0:01:58.1]} 43... f6 {[%clk 0:00:15.5]} 44. h4 {[%clk 0:01:55.3]}
44... Rb3 {[%clk 0:00:14.6]} 45. Nfe1 {[%clk 0:01:53.9]} 45... Rc3 {[%clk
0:00:15]} 46. Rb7 {[%clk 0:01:53.1]} 46... Rc7 {[%clk 0:00:13.5]} 47. Rb2 {[%clk
0:01:46.3]} 47... Rc4 {[%clk 0:00:12.8]} 48. Nf2 {[%clk 0:01:43.6]} 48... Nec5
{[%clk 0:00:12.9]} 49. Re2 {[%clk 0:01:43.2]} 49... Nb8 {[%clk 0:00:11.5]} 50.
Ned3 {[%clk 0:01:38.1]} 50... Nxd3 {[%clk 0:00:10.6]} 51. Nxd3 {[%clk 0:01:39]}
51... Nd7 {[%clk 0:00:11]} 52. Nf2 {[%clk 0:01:35.5]} 52... Nc5 {[%clk
0:00:11.1]} 53. Kf3 {[%clk 0:01:35.9]} 53... Rc3+ {[%clk 0:00:11.5]} 54. Kg2
{[%clk 0:01:36.4]} 54... Rc4 {[%clk 0:00:12]} 55. Kf3 {[%clk 0:01:36.3]} 55...
Nb3 {[%clk 0:00:12.6]} 56. Ra2 {[%clk 0:01:35.2]} 56... Rc3+ {[%clk 0:00:12.6]}
57. Kg2 {[%clk 0:01:34.9]} 57... Nd4 {[%clk 0:00:13]} 58. Ra7+ {[%clk
0:01:22.4]} 58... Kf8 {[%clk 0:00:13.2]} 59. Ra8+ {[%clk 0:01:22.9]} 59... Kg7
{[%clk 0:00:13.6]} 60. Ra7+ {[%clk 0:01:23.8]} 60... Kh6 {[%clk 0:00:13.6]} 61.
Ra6 {[%clk 0:01:22.2]} 61... Rc6 {[%clk 0:00:14]} 62. Ra2 {[%clk 0:01:18.1]}
62... Rc7 {[%clk 0:00:12.3]} 63. g4 {[%clk 0:01:18.5]} 63... hxg4 {[%clk
0:00:11.7]} 64. Nxg4+ {[%clk 0:01:19.4]} 64... Kh5 {[%clk 0:00:07.2]} 65. Nxf6+
{[%clk 0:01:19.7]} 65... Kxh4 {[%clk 0:00:07.8]} 66. Nd5 {[%clk 0:01:18.6]}
66... Rc2+ {[%clk 0:00:06.5]} 67. Rxc2 {[%clk 0:01:18.3]} 67... Nxc2 {[%clk
0:00:07.4]} 68. Ne7 {[%clk 0:01:15]} 68... Kg5 {[%clk 0:00:07.6]} 69. Kg3 {[%clk
0:01:13.3]} 69... Nd4 {[%clk 0:00:07.3]} 70. Kg2 {[%clk 0:01:09.4]} 70... Ne6
{[%clk 0:00:06.7]} 71. Kg3 {[%clk 0:01:06.5]} 71... Nf4 {[%clk 0:00:07.1]} 72.
Nc6 {[%clk 0:01:05.2]} 72... Nh5+ {[%clk 0:00:06.8]} 73. Kf3 {[%clk 0:01:05.2]}
73... Kf6 {[%clk 0:00:07.4]} 74. Kg4 {[%clk 0:01:05.6]} 74... Nf4 {[%clk
0:00:07.8]} 75. Kf3 {[%clk 0:01:06]} 75... Ne6 {[%clk 0:00:07.7]} 76. Kg4 {[%clk
0:01:03.5]} 76... Nc5 {[%clk 0:00:07.8]} 77. Kf3 {[%clk 0:01:03.1]} 77... Nb3
{[%clk 0:00:07.9]} 78. Kg4 {[%clk 0:01:02.4]} 78... Nc5 {[%clk 0:00:06.1]} 79.
Kf3 {[%clk 0:01:02.2]} 79... Ne6 {[%clk 0:00:04.8]} 80. Kg4 {[%clk 0:01:01.2]}
80... Nf8 {[%clk 0:00:04.9]} 81. Kf3 {[%clk 0:01:00.8]} 81... Nh7 {[%clk
0:00:05.1]} 82. Kg4 {[%clk 0:00:47.2]} 82... Ke6 {[%clk 0:00:05.6]} 83. Nd8+
{[%clk 0:00:40]} 83... Ke7 {[%clk 0:00:04.6]} 84. Nc6+ {[%clk 0:00:39.9]} 84...
Kd6 {[%clk 0:00:04.9]} 85. Nd8 {[%clk 0:00:40.5]} 85... Ke7 {[%clk 0:00:05.2]}
86. Nc6+ {[%clk 0:00:40.7]} 86... Kf6 {[%clk 0:00:03.3]} 87. Nd8 {[%clk
0:00:36.9]} 87... Ng5 {[%clk 0:00:03.3]} 88. Nc6 {[%clk 0:00:32]} 88... Nxe4
{[%clk 0:00:03.9]} 89. Kf3 {[%clk 0:00:31.7]} 89... Nd6 {[%clk 0:00:04.2]} 90.
Kg4 {[%clk 0:00:31.2]} 90... Nf7 {[%clk 0:00:04.7]} 91. Kf3 {[%clk 0:00:30.5]}
91... Ke6 {[%clk 0:00:04.5]} 92. Nb4 {[%clk 0:00:30.1]} 92... Kf5 {[%clk
0:00:04.4]} 93. Nc6 {[%clk 0:00:29.8]} 93... Ng5+ {[%clk 0:00:04.8]} 94. Ke3
{[%clk 0:00:30.1]} 94... Nh7 {[%clk 0:00:04.3]} 95. Ne7+ {[%clk 0:00:30.4]}
95... Kf6 {[%clk 0:00:04.7]} 96. Nd5+ {[%clk 0:00:31]} 96... Ke6 {[%clk
0:00:05.2]} 97. Nc7+ {[%clk 0:00:31.7]} 97... Kd6 {[%clk 0:00:05.2]} 98. Ne8+
{[%clk 0:00:32.3]} 98... Ke7 {[%clk 0:00:05.3]} 99. Nc7 {[%clk 0:00:32.8]} 99...
Nf6 {[%clk 0:00:05.9]} 100. Nb5 {[%clk 0:00:31.6]} 100... g5 {[%clk 0:00:05]}
101. Nc3 {[%clk 0:00:30.8]} 101... Ke6 {[%clk 0:00:05.2]} 102. Ne2 {[%clk
0:00:31.5]} 102... g4 {[%clk 0:00:04.5]} 103. Ng3 {[%clk 0:00:32]} 103... Kd5
{[%clk 0:00:04.6]} 104. Nf5 {[%clk 0:00:32.2]} 104... Ke6 {[%clk 0:00:04.4]}
105. Ng3 {[%clk 0:00:32.6]} 105... Nd5+ {[%clk 0:00:04.9]} 106. Ke4 {[%clk
0:00:32.6]} 106... Nc3+ {[%clk 0:00:05.3]} 107. Ke3 {[%clk 0:00:32.9]} 107...
Nb5 {[%clk 0:00:06.2]} 108. Ne4 {[%clk 0:00:27.2]} 108... Nd6 {[%clk 0:00:06.2]}
109. Nc5+ {[%clk 0:00:25.3]} 109... Kd5 {[%clk 0:00:05.2]} 110. Nd7 {[%clk
0:00:24.8]} 110... Nf5+ {[%clk 0:00:05.3]} 111. Kf2 {[%clk 0:00:25.1]} 111...
Ke6 {[%clk 0:00:04.9]} 112. Nc5+ {[%clk 0:00:25.1]} 112... Kd5 {[%clk
0:00:04.5]} 113. Nd7 {[%clk 0:00:25.7]} 113... Ke4 {[%clk 0:00:04.8]} 114. Nf6+
{[%clk 0:00:25.9]} 114... Kf4 {[%clk 0:00:05.4]} 115. Nd5+ {[%clk 0:00:26.5]}
115... Kg5 {[%clk 0:00:05.7]} 116. Kg2 {[%clk 0:00:21]} 116... Nd6 {[%clk
0:00:03.9]} 117. Kf2 {[%clk 0:00:19.7]} 117... Ne4+ {[%clk 0:00:04.5]} 118. Ke3
{[%clk 0:00:20.2]} 118... Nf6 {[%clk 0:00:05.2]} 119. Ne7 {[%clk 0:00:15.3]}
119... Kh6 {[%clk 0:00:04.5]} 120. Nf5+ {[%clk 0:00:15.3]} 120... Kh5 {[%clk
0:00:04.2]} 121. Nd6 {[%clk 0:00:11.6]} 121... Kg5 {[%clk 0:00:04.6]} 122. Nf7+
{[%clk 0:00:11.6]} 122... Kf5 {[%clk 0:00:05.1]} 123. Nh6+ {[%clk 0:00:11.8]}
123... Ke6 {[%clk 0:00:05.3]} 124. Kf2 {[%clk 0:00:10.1]} 124... Kd5 {[%clk
0:00:05.5]} 125. Ke3 {[%clk 0:00:10.5]} 125... Kd6 {[%clk 0:00:03.7]} 126. Nf5+
{[%clk 0:00:10.9]} 126... Ke6 {[%clk 0:00:03.8]} 127. Ng3 {[%clk 0:00:11.3]}
1/2-1/2

[Event "*** Titled Tuesday Blitz"]
[Site "Chess.com"]
[Date "2020.05.26"]
[Round "6"]
[White "Gerodot71"]
[Black "Herracek"]
[Result "0-1"]
[WhiteElo "2386"]
[BlackElo "2560"]
[TimeControl "180+1"]
[EndTime "11:02:54 PDT"]
[Termination "Herracek won by resignation"]

1. d4 {[%clk 0:03:00.9]} 1... Nf6 {[%clk 0:02:59.7]} 2. c4 {[%clk 0:03:00.9]}
2... e5 {[%clk 0:02:59.7]} 3. dxe5 {[%clk 0:02:59.2]} 3... Ng4 {[%clk
0:03:00.1]} 4. e3 {[%clk 0:02:57.8]} 4... Nxe5 {[%clk 0:02:59.9]} 5. Nh3 {[%clk
0:02:58.5]} 5... d6 {[%clk 0:03:00.3]} 6. Nf4 {[%clk 0:02:58.5]} 6... g6 {[%clk
0:03:00.8]} 7. Nc3 {[%clk 0:02:58.2]} 7... Bg7 {[%clk 0:03:01.2]} 8. Be2 {[%clk
0:02:58.2]} 8... O-O {[%clk 0:03:01.4]} 9. O-O {[%clk 0:02:57.7]} 9... a5 {[%clk
0:03:01.5]} 10. b3 {[%clk 0:02:50.4]} 10... Nxc4 {[%clk 0:02:56.9]} 11. Bxc4
{[%clk 0:02:47.1]} 11... Bxc3 {[%clk 0:02:56.8]} 12. Bd2 {[%clk 0:02:39.5]}
12... Bg7 {[%clk 0:02:50.5]} 13. h4 {[%clk 0:02:33.8]} 13... c6 {[%clk
0:02:50.7]} 14. e4 {[%clk 0:02:33.1]} 14... Qxh4 {[%clk 0:02:47.2]} 15. Qf3
{[%clk 0:02:27.4]} 15... Bg4 {[%clk 0:02:39.2]} 16. Qd3 {[%clk 0:02:24.4]} 16...
b5 {[%clk 0:02:34.3]} 17. g3 {[%clk 0:01:53.7]} 17... bxc4 {[%clk 0:02:32.2]}
0-1

[Event "*** Titled Tuesday Blitz"]
[Site "Chess.com"]
[Date "2020.05.26"]
[Round "6"]
[White "dpopadic"]
[Black "Unknown_IM"]
[Result "1/2-1/2"]
[WhiteElo "2386"]
[BlackElo "2526"]
[TimeControl "180+1"]
[EndTime "11:03:08 PDT"]
[Termination "Game drawn by agreement"]

1. e4 {[%clk 0:03:00.9]} 1... c5 {[%clk 0:02:59.6]} 2. Nc3 {[%clk 0:03:00.1]}
2... e6 {[%clk 0:02:59.3]} 3. d3 {[%clk 0:02:57.1]} 3... Nc6 {[%clk 0:02:59.2]}
4. g4 {[%clk 0:02:57.1]} 4... d5 {[%clk 0:02:56.9]} 5. Bg2 {[%clk 0:02:56.8]}
5... d4 {[%clk 0:02:51.3]} 6. Nce2 {[%clk 0:02:55.2]} 6... e5 {[%clk 0:02:47.4]}
7. Ng3 {[%clk 0:02:55.2]} 7... Be6 {[%clk 0:02:42]} 8. f3 {[%clk 0:02:49.4]}
8... Qd7 {[%clk 0:02:37.6]} 9. Nh3 {[%clk 0:02:46.7]} 9... f6 {[%clk 0:02:36.6]}
10. O-O {[%clk 0:02:41.2]} 10... h5 {[%clk 0:02:34.9]} 11. Nf2 {[%clk
0:02:18.6]} 11... hxg4 {[%clk 0:02:32.8]} 12. fxg4 {[%clk 0:02:15.3]} 12...
O-O-O {[%clk 0:02:32.8]} 13. h3 {[%clk 0:02:13.2]} 13... Kb8 {[%clk 0:02:30]}
14. Bd2 {[%clk 0:02:10.3]} 14... c4 {[%clk 0:02:29.9]} 15. dxc4 {[%clk
0:02:01.8]} 15... Bxc4 {[%clk 0:02:29]} 16. Nd3 {[%clk 0:02:02.2]} 16... Nge7
{[%clk 0:02:07.5]} 1/2-1/2

[Event "*** Titled Tuesday Blitz"]
[Site "Chess.com"]
[Date "2020.05.26"]
[Round "6"]
[White "talaicito"]
[Black "Vitor-Moraes"]
[Result "1-0"]
[WhiteElo "2147"]
[BlackElo "1975"]
[TimeControl "180+1"]
[EndTime "11:03:09 PDT"]
[Termination "talaicito won by resignation"]

1. d4 {[%clk 0:03:00.9]} 1... Nf6 {[%clk 0:02:59.2]} 2. Nc3 {[%clk 0:03:00.4]}
2... e6 {[%clk 0:02:59.7]} 3. e4 {[%clk 0:03:00.7]} 3... d6 {[%clk 0:02:56.2]}
4. Bf4 {[%clk 0:02:58.2]} 4... Nbd7 {[%clk 0:02:54.7]} 5. Nf3 {[%clk 0:02:57.4]}
5... Qe7 {[%clk 0:02:53.1]} 6. Qd2 {[%clk 0:02:52.8]} 6... e5 {[%clk 0:02:52.7]}
7. dxe5 {[%clk 0:02:52.3]} 7... Nxe5 {[%clk 0:02:52.4]} 8. Nxe5 {[%clk
0:02:51.1]} 8... dxe5 {[%clk 0:02:53]} 9. Bg5 {[%clk 0:02:51.3]} 9... h6 {[%clk
0:02:52.3]} 10. Nd5 {[%clk 0:02:51]} 10... Qd8 {[%clk 0:02:47.6]} 11. Nxf6+
{[%clk 0:02:49]} 11... Ke7 {[%clk 0:02:17]} 12. Qxd8+ {[%clk 0:02:46]} 12...
Kxd8 {[%clk 0:02:16.5]} 13. O-O-O+ {[%clk 0:02:46.1]} 13... Ke7 {[%clk
0:02:15.5]} 14. Nd5+ {[%clk 0:02:43.9]} 14... Kd6 {[%clk 0:02:12.8]} 15. Be3
{[%clk 0:02:28]} 15... Kc6 {[%clk 0:02:09.6]} 16. a4 {[%clk 0:02:19.1]} 16... a6
{[%clk 0:02:08.3]} 17. Rd3 {[%clk 0:02:07.5]} 17... b6 {[%clk 0:02:07.8]} 18.
Rc3+ {[%clk 0:02:05.7]} 18... Bc5 {[%clk 0:02:04.3]} 19. b4 {[%clk 0:02:04.3]}
1-0

[Event "*** Titled Tuesday Blitz"]
[Site "Chess.com"]
[Date "2020.05.26"]
[Round "6"]
[White "Beca95"]
[Black "VishnuPrasanna"]
[Result "1-0"]
[WhiteElo "2868"]
[BlackElo "2651"]
[TimeControl "180+1"]
[EndTime "11:03:20 PDT"]
[Termination "Beca95 won by resignation"]

1. e4 {[%clk 0:03:00.9]} 1... c5 {[%clk 0:02:59.6]} 2. Nc3 {[%clk 0:03:01.5]}
2... d6 {[%clk 0:02:59.4]} 3. a3 {[%clk 0:03:02.1]} 3... e6 {[%clk 0:02:56.7]}
4. Bc4 {[%clk 0:03:02]} 4... Nf6 {[%clk 0:02:56.1]} 5. d3 {[%clk 0:03:01.8]}
5... d5 {[%clk 0:02:56.1]} 6. Bb5+ {[%clk 0:03:01.7]} 6... Bd7 {[%clk
0:02:55.6]} 7. Bxd7+ {[%clk 0:02:58.4]} 7... Nbxd7 {[%clk 0:02:56.5]} 8. Qe2
{[%clk 0:02:57.9]} 8... d4 {[%clk 0:02:49.8]} 9. Nb1 {[%clk 0:02:56.9]} 9... Bd6
{[%clk 0:02:47.5]} 10. f4 {[%clk 0:02:54.3]} 10... e5 {[%clk 0:02:46.1]} 11. Nf3
{[%clk 0:02:54.5]} 11... Qc7 {[%clk 0:02:44.8]} 12. f5 {[%clk 0:02:54.3]} 12...
c4 {[%clk 0:02:26.3]} 13. O-O {[%clk 0:02:53.7]} 13... cxd3 {[%clk 0:02:24.3]}
14. cxd3 {[%clk 0:02:54.6]} 14... O-O {[%clk 0:02:15.8]} 15. Bg5 {[%clk
0:02:47]} 15... Rac8 {[%clk 0:02:14.1]} 16. Nbd2 {[%clk 0:02:46.4]} 16... Qc2
{[%clk 0:02:08.5]} 17. Rab1 {[%clk 0:02:45.4]} 17... Ng4 {[%clk 0:02:00.3]} 18.
Ne1 {[%clk 0:02:45.4]} 1-0

[Event "*** Titled Tuesday Blitz"]
[Site "Chess.com"]
[Date "2020.05.26"]
[Round "6"]
[White "Barmen_EV"]
[Black "CMS13"]
[Result "1-0"]
[WhiteElo "2407"]
[BlackElo "2196"]
[TimeControl "180+1"]
[EndTime "11:03:25 PDT"]
[Termination "Barmen_EV won by resignation"]

1. d4 {[%clk 0:02:58.8]} 1... d5 {[%clk 0:02:59]} 2. c4 {[%clk 0:02:59.4]} 2...
e6 {[%clk 0:02:59.3]} 3. Nc3 {[%clk 0:02:57.2]} 3... Bb4 {[%clk 0:02:59]} 4. e3
{[%clk 0:02:55.4]} 4... Nf6 {[%clk 0:02:59.3]} 5. a3 {[%clk 0:02:56]} 5... Be7
{[%clk 0:02:57.4]} 6. Bd3 {[%clk 0:02:54.7]} 6... O-O {[%clk 0:02:57.3]} 7. Nf3
{[%clk 0:02:54.3]} 7... Nc6 {[%clk 0:02:57.2]} 8. O-O {[%clk 0:02:52.2]} 8...
dxc4 {[%clk 0:02:55.8]} 9. Bxc4 {[%clk 0:02:51.8]} 9... a6 {[%clk 0:02:56.3]}
10. e4 {[%clk 0:02:51.3]} 10... Re8 {[%clk 0:02:48.9]} 11. Bg5 {[%clk
0:02:50.8]} 11... h6 {[%clk 0:02:43]} 12. Bh4 {[%clk 0:02:50]} 12... g5 {[%clk
0:02:39.5]} 13. Bg3 {[%clk 0:02:48.2]} 13... Nh7 {[%clk 0:02:34.7]} 14. d5
{[%clk 0:02:47]} 14... exd5 {[%clk 0:02:32.5]} 15. exd5 {[%clk 0:02:47.9]} 15...
Nb8 {[%clk 0:02:30.5]} 16. Ba2 {[%clk 0:02:48.8]} 16... Bf5 {[%clk 0:02:28.9]}
17. Nd4 {[%clk 0:02:47]} 17... Bg6 {[%clk 0:02:26.7]} 18. Qf3 {[%clk 0:02:46.9]}
18... Bd6 {[%clk 0:02:24.8]} 19. Nf5 {[%clk 0:02:45.8]} 19... Bxg3 {[%clk
0:02:16.4]} 20. fxg3 {[%clk 0:02:44.3]} 20... Bxf5 {[%clk 0:02:07.6]} 21. Qxf5
{[%clk 0:02:45.2]} 21... Qd7 {[%clk 0:02:02.3]} 22. d6 {[%clk 0:02:45.5]} 22...
Qxf5 {[%clk 0:02:02.2]} 23. Rxf5 {[%clk 0:02:44.7]} 23... cxd6 {[%clk 0:02:02]}
24. Bxf7+ {[%clk 0:02:42.4]} 24... Kf8 {[%clk 0:02:02.4]} 25. Bxe8+ {[%clk
0:02:35.3]} 25... Kxe8 {[%clk 0:02:03.3]} 26. Raf1 {[%clk 0:02:35.1]} 26... Nc6
{[%clk 0:01:58.1]} 27. Nd5 {[%clk 0:02:36]} 27... Rc8 {[%clk 0:01:52.7]} 28. Rf7
{[%clk 0:02:31.4]} 1-0

[Event "*** Titled Tuesday Blitz"]
[Site "Chess.com"]
[Date "2020.05.26"]
[Round "6"]
[White "BikingBrian"]
[Black "aakankshachess"]
[Result "1-0"]
[WhiteElo "2264"]
[BlackElo "2445"]
[TimeControl "180+1"]
[EndTime "11:03:55 PDT"]
[Termination "BikingBrian won by resignation"]

1. d4 {[%clk 0:03:00.9]} 1... Nf6 {[%clk 0:02:59.8]} 2. Bg5 {[%clk 0:02:59.2]}
2... c5 {[%clk 0:02:57.6]} 3. Nc3 {[%clk 0:02:57.7]} 3... Qb6 {[%clk 0:02:55.6]}
4. d5 {[%clk 0:02:56.5]} 4... Qxb2 {[%clk 0:02:54.7]} 5. Bd2 {[%clk 0:02:56.6]}
5... Qb6 {[%clk 0:02:53]} 6. e4 {[%clk 0:02:56.5]} 6... d6 {[%clk 0:02:52.6]} 7.
f4 {[%clk 0:02:56.7]} 7... Nbd7 {[%clk 0:02:51.3]} 8. Nf3 {[%clk 0:02:56.6]}
8... g6 {[%clk 0:02:47]} 9. e5 {[%clk 0:02:55.5]} 9... dxe5 {[%clk 0:02:42.8]}
10. fxe5 {[%clk 0:02:42.2]} 10... Ng4 {[%clk 0:02:41.5]} 11. Rb1 {[%clk
0:02:22.1]} 11... Qc7 {[%clk 0:02:34.1]} 12. Nb5 {[%clk 0:01:45]} 12... Qd8
{[%clk 0:02:31]} 13. d6 {[%clk 0:01:41.2]} 13... exd6 {[%clk 0:02:15.3]} 14.
exd6 {[%clk 0:01:39.3]} 14... Bg7 {[%clk 0:02:12.4]} 15. Nc7+ {[%clk 0:01:31.7]}
15... Kf8 {[%clk 0:02:12.6]} 16. Bg5 {[%clk 0:01:09.6]} 16... f6 {[%clk
0:02:07.8]} 17. Ne6+ {[%clk 0:01:08.6]} 1-0

[Event "*** Titled Tuesday Blitz"]
[Site "Chess.com"]
[Date "2020.05.26"]
[Round "6"]
[White "IriBu"]
[Black "InitiatingASC"]
[Result "1-0"]
[WhiteElo "2552"]
[BlackElo "2389"]
[TimeControl "180+1"]
[EndTime "11:04:00 PDT"]
[Termination "IriBu won by resignation"]

1. e4 {[%clk 0:03:00.9]} 1... c5 {[%clk 0:02:58.6]} 2. Nf3 {[%clk 0:03:00.3]}
2... Nc6 {[%clk 0:02:52.2]} 3. d4 {[%clk 0:02:56.6]} 3... cxd4 {[%clk
0:02:52.4]} 4. Nxd4 {[%clk 0:02:56.9]} 4... Nf6 {[%clk 0:02:53.1]} 5. Nc3 {[%clk
0:02:56.4]} 5... e5 {[%clk 0:02:53.8]} 6. Ndb5 {[%clk 0:02:55.8]} 6... h6 {[%clk
0:02:54.2]} 7. Nd6+ {[%clk 0:02:29.7]} 7... Bxd6 {[%clk 0:02:50.8]} 8. Qxd6
{[%clk 0:02:29.3]} 8... Qe7 {[%clk 0:02:51.7]} 9. Qxe7+ {[%clk 0:02:26.6]} 9...
Kxe7 {[%clk 0:02:52.6]} 10. Be3 {[%clk 0:02:25.8]} 10... d6 {[%clk 0:02:52.8]}
11. f3 {[%clk 0:02:24.2]} 11... Rd8 {[%clk 0:02:52.9]} 12. O-O-O {[%clk
0:02:22.6]} 12... Be6 {[%clk 0:02:53.4]} 13. g4 {[%clk 0:02:10.8]} 13... d5
{[%clk 0:02:50.6]} 14. Bc5+ {[%clk 0:02:06.1]} 14... Ke8 {[%clk 0:02:50.9]} 15.
exd5 {[%clk 0:02:04.3]} 15... Nxd5 {[%clk 0:02:51.1]} 16. Ne4 {[%clk 0:02:02.3]}
16... b6 {[%clk 0:02:42.5]} 17. Ba3 {[%clk 0:01:45.8]} 17... Ndb4 {[%clk
0:02:30.2]} 18. Bb5 {[%clk 0:01:33]} 18... Bd5 {[%clk 0:01:52.8]} 19. Bxb4
{[%clk 0:01:31]} 19... Bxe4 {[%clk 0:01:49.9]} 20. fxe4 {[%clk 0:01:28.4]} 1-0

[Event "*** Titled Tuesday Blitz"]
[Site "Chess.com"]
[Date "2020.05.26"]
[Round "6"]
[White "Kate1606"]
[Black "mjray79"]
[Result "0-1"]
[WhiteElo "1533"]
[BlackElo "2288"]
[TimeControl "180+1"]
[EndTime "11:04:02 PDT"]
[Termination "mjray79 won by resignation"]

1. e4 {[%clk 0:03:00.7]} 1... e5 {[%clk 0:02:59.9]} 2. Nf3 {[%clk 0:02:58.4]}
2... Nc6 {[%clk 0:02:59.8]} 3. d4 {[%clk 0:02:57.8]} 3... exd4 {[%clk
0:02:59.1]} 4. Bc4 {[%clk 0:02:57.2]} 4... Bc5 {[%clk 0:02:58.1]} 5. c3 {[%clk
0:02:54.9]} 5... Nf6 {[%clk 0:02:57.8]} 6. cxd4 {[%clk 0:02:54.1]} 6... Bb4+
{[%clk 0:02:57]} 7. Bd2 {[%clk 0:02:53]} 7... Nxe4 {[%clk 0:02:54.2]} 8. Bxf7+
{[%clk 0:02:47.2]} 8... Kxf7 {[%clk 0:02:52.4]} 9. Bxb4 {[%clk 0:02:43]} 9...
Nxb4 {[%clk 0:02:49.5]} 10. Qb3+ {[%clk 0:02:42.7]} 10... Kf8 {[%clk 0:02:49.9]}
11. Qxb4+ {[%clk 0:02:42.7]} 11... Qe7 {[%clk 0:02:50.3]} 12. Qxe7+ {[%clk
0:02:33]} 12... Kxe7 {[%clk 0:02:51.2]} 13. O-O {[%clk 0:02:32.5]} 13... Kd8
{[%clk 0:02:50.9]} 14. Nc3 {[%clk 0:02:26.1]} 14... Nxc3 {[%clk 0:02:50]} 15.
bxc3 {[%clk 0:02:26.3]} 15... h6 {[%clk 0:02:48.8]} 16. Ne5 {[%clk 0:02:22.4]}
16... Rf8 {[%clk 0:02:47.1]} 17. Rfe1 {[%clk 0:02:19.5]} 17... d6 {[%clk
0:02:46.2]} 18. Ng6 {[%clk 0:02:09.1]} 18... Rf6 {[%clk 0:02:45]} 19. Ne7 {[%clk
0:02:04.9]} 19... Be6 {[%clk 0:02:41.7]} 20. Re2 {[%clk 0:01:43.4]} 20... d5
{[%clk 0:02:22.6]} 21. Rae1 {[%clk 0:01:32.4]} 21... Kxe7 {[%clk 0:02:21.8]} 22.
f4 {[%clk 0:01:30.7]} 22... Kd6 {[%clk 0:02:17.7]} 23. c4 {[%clk 0:01:28.9]}
23... dxc4 {[%clk 0:02:15.3]} 24. f5 {[%clk 0:01:28.5]} 24... Bxf5 {[%clk
0:02:14.6]} 25. Rc1 {[%clk 0:01:26.1]} 25... Bd3 {[%clk 0:02:08.4]} 0-1

[Event "*** Titled Tuesday Blitz"]
[Site "Chess.com"]
[Date "2020.05.26"]
[Round "6"]
[White "joejan"]
[Black "Franciscoconstantino"]
[Result "1-0"]
[WhiteElo "2190"]
[BlackElo "1606"]
[TimeControl "180+1"]
[EndTime "11:04:08 PDT"]
[Termination "joejan won by checkmate"]

1. e4 {[%clk 0:03:00.9]} 1... c5 {[%clk 0:02:59]} 2. Nc3 {[%clk 0:02:59.9]} 2...
d6 {[%clk 0:02:58.2]} 3. f4 {[%clk 0:03:00.2]} 3... Nc6 {[%clk 0:02:56.4]} 4.
Nf3 {[%clk 0:02:59.9]} 4... g6 {[%clk 0:02:56.5]} 5. Bc4 {[%clk 0:02:58.4]} 5...
Bg7 {[%clk 0:02:55]} 6. O-O {[%clk 0:02:58.8]} 6... e6 {[%clk 0:02:55.2]} 7. d3
{[%clk 0:02:59]} 7... Nge7 {[%clk 0:02:52.6]} 8. Qe1 {[%clk 0:02:59.2]} 8... O-O
{[%clk 0:02:50.1]} 9. f5 {[%clk 0:02:59.2]} 9... Nd4 {[%clk 0:02:42.9]} 10. Qh4
{[%clk 0:02:55.2]} 10... Nec6 {[%clk 0:02:25.5]} 11. Bg5 {[%clk 0:02:47]} 11...
Qb6 {[%clk 0:01:44.1]} 12. f6 {[%clk 0:02:40.3]} 12... Bh8 {[%clk 0:01:44.5]}
13. Bd2 {[%clk 0:02:30.8]} 13... Nxc2 {[%clk 0:01:41.1]} 14. Ng5 {[%clk
0:02:24.8]} 14... h5 {[%clk 0:01:33.6]} 15. g4 {[%clk 0:02:24.2]} 15... Qd8
{[%clk 0:00:53.4]} 16. gxh5 {[%clk 0:02:20.2]} 16... Bxf6 {[%clk 0:00:53.2]} 17.
hxg6 {[%clk 0:02:20]} 17... Bxg5 {[%clk 0:00:51.5]} 18. Qh7# {[%clk 0:02:18.3]}
1-0